[Event "94th FRA-ch Open B 2019"]
[Site "Chartres"]
[Date "2019.08.23"]
[Round "7.5"]
[White "Grange, Julien"]
[Black "Partinico, Jeremy"]
[Result "1-0"]
[ECO "A20"]
[WhiteElo "1894"]
[BlackElo "1985"]
[Annotator "NA"]
[PlyCount "89"]
[EventDate "2019.08.17"]
[EventType "swiss"]
[EventCountry "FRA"]
[SourceTitle "playchess.com"]
[Source "ChessBase"]
[SourceQuality "1"]
[TimeControl "40/5400+30:1800+30"]

1. c4 {[%emt 0:00:00]} e5 {[%emt 0:00:00]} 2. g3 {[%emt 0:00:00]} Nc6 {[%emt 0:00:00]} 3. Bg2 {[%emt 0:01:33]} f5 {[%emt 0:00:28]} 4. e3 {[%emt 0:02:28]} Nf6 {[%emt 0:01:26]} 5. d4 {[%emt 0:07:15]} e4 {[%emt 0:17:27]} 6. a3 {[%emt 0:03:13]} d5 {[%emt 0:02:01]} 7. cxd5 {[%emt 0:04:31]} Nxd5 {[%emt 0:00:12]} 8. b4 {[%emt 0:00:06]} Bd6 {[%emt 0:04:29]} 9. Nd2 {[%emt 0:02:52]} Be6 {[%emt 0:06:47]} 10. Nh3 {[%emt 0:05:04]} a5 {[%emt 0:05:27]} 11. bxa5 {[%emt 0:05:04]} Rxa5 {[%emt 0:02:46]} 12. Bb2 {[%emt 0:01:00]} Nb6 {[%emt 0:01:10]} 13. Qc2 {[%emt 0:05:27]} O-O {[%emt 0:01:44]} 14. O-O {[%emt 0:00:41]} Qe7 {[%emt 0:00:58]} 15. Nf4 {[%emt 0:09:38]} Bf7 {[%emt 0:01:24]} 16. Nb3 {[%emt 0:03:30]} Rb5 {[%emt 0:01:36]} 17. Nd2 {[%emt 0:00:25]} Ra8 {[%emt 0:00:41]} 18. Rfb1 {[%emt 0:01:39]} Rba5 {[%emt 0:09:54]} 19. Nb3 {[%emt 0:10:00]} R5a7 {[%emt 0:00:15]} 20. Bh3 {[%emt 0:07:07]} g5 {[%emt 0:03:42]} 21. Ne2 {[%emt 0:03:04]} g4 {[%emt 0:01:29]} 22. Bf1 {[%emt 0:00:08]} Nc4 {[%emt 0:02:14]} 23. Nf4 {[%emt 0:04:04]} Nxa3 {[%emt 0:03:08]} 24. Bxa3 {[%emt 0:00:06]} Rxa3 {[%emt 0:00:07]} 25. Rxa3 {[%emt 0:01:00]} Rxa3 {[%emt 0:00:02]} 26. Bc4 {[%emt 0:01:21]} Nb4 {[%emt 0:04:49]} 27. Qc1 {[%emt 0:02:27]} Na2 {[%emt 0:09:46]} 28. Qc2 {[%emt 0:00:38]} Bxc4 {[%emt 0:01:34]} 29. Qxc4+ {[%emt 0:00:10]} Qf7 {[%emt 0:00:04]} 30. d5 {[%emt 0:02:47]} c6 {[%emt 0:04:31]} 31. Nd4 {[%emt 0:01:05]} Bxf4 {[%emt 0:04:01]} 32. gxf4 {[%emt 0:00:35]} Nc3 {[%emt 0:02:54]} 33. dxc6 {[%emt 0:01:26]} Qxc4 {[%emt 0:05:45]} 34. cxb7 {[%emt 0:00:07]} Nxb1 {[%emt 0:01:38]} 35. b8=Q+ {[%emt 0:00:10]} Kf7 {[%emt 0:00:13]} 36. Qxb1 {[%emt 0:01:02]} Qa6 {[%emt 0:01:03]} 37. Qb4 {[%emt 0:03:46]} Ra1+ {[%emt 0:00:40]} 38. Kg2 {[%emt 0:00:05]} Qf1+ {[%emt 0:00:10]} 39. Kg3 {[%emt 0:00:06]} Qg1+ {[%emt 0:00:18]} 40. Kh4 {[%emt 0:00:05]} Qxf2+ {[%emt 0:01:53]} 41. Kg5 {[%emt 0:30:13]} Qa2 {[%emt 0:12:02]} 42. Qb7+ {[%emt 0:00:00]} Ke8 {[%emt 0:03:19]} 43. Qc8+ {[%emt 0:00:00]} Kf7 {[%emt 0:00:47]} 44. Qd7+ {[%emt 0:00:00]} Kg8 {[%emt 0:01:08]} 45. Qe8+ {[%emt 0:00:00]} 1-0

[Event "94th FRA-ch Open B 2019"]
[Site "Chartres"]
[Date "2019.08.23"]
[Round "7.6"]
[White "Dubuisson, Mathias"]
[Black "Aubry, Justin"]
[Result "1/2-1/2"]
[ECO "B10"]
[WhiteElo "1876"]
[BlackElo "1915"]
[Annotator "NA"]
[PlyCount "70"]
[EventDate "2019.08.17"]
[EventType "swiss"]
[EventCountry "FRA"]
[SourceTitle "playchess.com"]
[Source "ChessBase"]
[SourceQuality "1"]
[TimeControl "40/5400+30:1800+30"]

1. e4 {[%emt 0:00:00]} c6 {[%emt 0:00:00]} 2. d3 {[%emt 0:00:00]} d5 {[%emt 0:00:00]} 3. Nd2 {[%emt 0:00:00]} e5 {[%emt 0:00:18]} 4. Ngf3 {[%emt 0:00:00]} Bd6 {[%emt 0:00:16]} 5. g3 {[%emt 0:00:17]} Nf6 {[%emt 0:00:40]} 6. Bg2 {[%emt 0:00:18]} O-O {[%emt 0:00:21]} 7. O-O {[%emt 0:00:19]} Re8 {[%emt 0:06:50]} 8. Qe1 {[%emt 0:04:49]} Qc7 {[%emt 0:06:06]} 9. Nb3 {[%emt 0:05:47]} Bg4 {[%emt 0:20:02]} 10. h3 {[%emt 0:04:47]} Bxf3 {[%emt 0:00:17]} 11. Bxf3 {[%emt 0:00:05]} Nbd7 {[%emt 0:01:29]} 12. Bg2 {[%emt 0:01:37]} Re7 {[%emt 0:15:54]} 13. Be3 {[%emt 0:03:19]} Nh5 {[%emt 0:13:32]} 14. Qe2 {[%emt 0:09:36]} g6 {[%emt 0:00:17]} 15. exd5 {[%emt 0:04:15]} f5 {[%emt 0:00:15]} 16. Bg5 {[%emt 0:00:39]} Rf7 {[%emt 0:02:39]} 17. dxc6 {[%emt 0:02:53]} bxc6 {[%emt 0:00:02]} 18. g4 {[%emt 0:10:11]} Ng7 {[%emt 0:05:21]} 19. Nd2 {[%emt 0:04:30]} Ne6 {[%emt 0:01:18]} 20. Bh4 {[%emt 0:01:32]} Nd4 {[%emt 0:08:11]} 21. Qd1 {[%emt 0:01:08]} Raf8 {[%emt 0:01:56]} 22. c3 {[%emt 0:01:58]} Ne6 {[%emt 0:00:16]} 23. Nc4 {[%emt 0:07:10]} Nf4 {[%emt 0:02:39]} 24. Qf3 {[%emt 0:10:21]} Nxg2 {[%emt 0:01:47]} 25. Qxg2 {[%emt 0:00:11]} Kh8 {[%emt 0:03:52]} 26. f3 {[%emt 0:02:16]} Nc5 {[%emt 0:00:42]} 27. Qe2 {[%emt 0:02:16]} Rd7 {[%emt 0:04:46]} 28. Rad1 {[%emt 0:02:03]} Ne6 {[%emt 0:00:35]} 29. Bg3 {[%emt 0:03:20]} Nf4 {[%emt 0:01:17]} 30. Bxf4 {[%emt 0:00:13]} exf4 {[%emt 0:00:02]} 31. Nxd6 {[%emt 0:01:47]} Qxd6 {[%emt 0:00:01]} 32. Rfe1 {[%emt 0:00:10]} fxg4 {[%emt 0:01:11]} 33. hxg4 {[%emt 0:00:10]} Rg7 {[%emt 0:01:40]} 34. Qe5 {[%emt 0:02:23]} Qd8 {[%emt 0:00:02]} 35. g5 {[%emt 0:08:59]} Qb6+ {[%emt 0:00:23]} 1/2-1/2

[Event "94th FRA-ch Open B 2019"]
[Site "Chartres"]
[Date "2019.08.24"]
[Round "8.1"]
[White "Antoine, Jean-Luc"]
[Black "Lucbernet, Thomas"]
[Result "1/2-1/2"]
[ECO "D30"]
[WhiteElo "1959"]
[BlackElo "1873"]
[Annotator "NA"]
[PlyCount "114"]
[EventDate "2019.08.17"]
[EventType "swiss"]
[EventCountry "FRA"]
[SourceTitle "playchess.com"]
[Source "ChessBase"]
[SourceQuality "1"]
[TimeControl "40/5400+30:1800+30"]

1. c4 {[%emt 0:00:00]} e6 {[%emt 0:01:41]} 2. d4 {[%emt 0:01:28]} d5 {[%emt 0:00:20]} 3. e3 {[%emt 0:00:53]} Nf6 {[%emt 0:03:58]} 4. Nf3 {[%emt 0:00:55]} Be7 {[%emt 0:07:51]} 5. Nbd2 {[%emt 0:02:29]} O-O {[%emt 0:03:51]} 6. Qc2 {[%emt 0:01:03]} Nbd7 {[%emt 0:07:11]} 7. b3 {[%emt 0:01:06]} c5 {[%emt 0:07:55]} 8. Bb2 {[%emt 0:03:50]} b6 {[%emt 0:06:16]} 9. Bd3 {[%emt 0:05:08]} Bb7 {[%emt 0:04:34]} 10. cxd5 {[%emt 0:03:16]} exd5 {[%emt 0:00:20]} 11. Rc1 {[%emt 0:03:17]} Rc8 {[%emt 0:01:37]} 12. Qb1 {[%emt 0:00:35]} cxd4 {[%emt 0:01:17]} 13. Bxd4 {[%emt 0:01:30]} Rxc1+ {[%emt 0:00:58]} 14. Qxc1 {[%emt 0:00:02]} Nc5 {[%emt 0:01:36]} 15. Be2 {[%emt 0:02:39]} Qd7 {[%emt 0:11:38]} 16. O-O {[%emt 0:01:49]} Qf5 {[%emt 0:08:42]} 17. Qb1 {[%emt 0:01:00]} Nce4 {[%emt 0:02:14]} 18. Qb2 {[%emt 0:09:40]} Bd6 {[%emt 0:07:39]} 19. Bd3 {[%emt 0:06:28]} Qh5 {[%emt 0:02:03]} 20. h3 {[%emt 0:04:36]} Re8 {[%emt 0:03:16]} 21. Bxf6 {[%emt 0:08:33]} Nxf6 {[%emt 0:01:56]} 22. Nd4 {[%emt 0:02:11]} Ne4 {[%emt 0:01:17]} 23. Be2 {[%emt 0:08:47]} Qg6 {[%emt 0:01:04]} 24. N2f3 {[%emt 0:05:02]} Qf6 {[%emt 0:01:40]} 25. Rc1 {[%emt 0:02:12]} h6 {[%emt 0:02:13]} 26. Bb5 {[%emt 0:01:43]} Rc8 {[%emt 0:03:12]} 27. Rxc8+ {[%emt 0:02:12]} Bxc8 {[%emt 0:00:02]} 28. Qc2 {[%emt 0:00:25]} Be6 {[%emt 0:03:08]} 29. Qc6 {[%emt 0:06:36]} Bf8 {[%emt 0:03:08]} 30. Bd3 {[%emt 0:03:26]} Nd6 {[%emt 0:01:11]} 31. Qc2 {[%emt 0:02:15]} g6 {[%emt 0:00:20]} 32. Nxe6 {[%emt 0:04:21]} Qxe6 {[%emt 0:00:16]} 33. Nd4 {[%emt 0:00:10]} Qf6 {[%emt 0:00:47]} 34. Qc7 {[%emt 0:02:17]} Qe7 {[%emt 0:00:47]} 35. Qxe7 {[%emt 0:00:59]} Bxe7 {[%emt 0:00:02]} 36. Nc6 {[%emt 0:00:18]} Bf6 {[%emt 0:00:01]} 37. Nxa7 {[%emt 0:00:26]} Kf8 {[%emt 0:01:24]} 38. Nc6 {[%emt 0:00:27]} Bc3 {[%emt 0:00:46]} 39. f3 {[%emt 0:01:52]} Ke8 {[%emt 0:00:26]} 40. Kf2 {[%emt 0:00:12]} Kd7 {[%emt 0:00:28]} 41. Nd4 {[%emt 0:30:20]} Bb2 {[%emt 0:14:01]} 42. a4 {[%emt 0:00:00]} Kc7 {[%emt 0:03:14]} 43. Ke2 {[%emt 0:00:00]} Nb7 {[%emt 0:08:56]} 44. b4 {[%emt 0:00:00]} Kd7 {[%emt 0:03:34]} 45. Bb5+ {[%emt 0:00:00]} Kd6 {[%emt 0:00:42]} 46. Kd3 {[%emt 0:00:00]} Nd8 {[%emt 0:00:47]} 47. h4 {[%emt 0:00:00]} Ne6 {[%emt 0:01:38]} 48. g3 {[%emt 0:00:00]} Bxd4 {[%emt 0:00:48]} 49. exd4 {[%emt 0:00:00]} Nc7 {[%emt 0:00:06]} 50. Ke3 {[%emt 0:00:00]} Nxb5 {[%emt 0:00:08]} 51. axb5 {[%emt 0:00:00]} Ke6 {[%emt 0:00:53]} 52. Kf4 {[%emt 0:00:00]} Kf6 {[%emt 0:00:27]} 53. Kg4 {[%emt 0:00:00]} Ke6 {[%emt 0:00:58]} 54. Kf4 {[%emt 0:00:00]} Kf6 {[%emt 0:00:07]} 55. g4 {[%emt 0:00:00]} g5+ {[%emt 0:00:24]} 56. hxg5+ {[%emt 0:00:00]} hxg5+ {[%emt 0:00:07]} 57. Ke3 {[%emt 0:00:00]} Ke6 {[%emt 0:00:17]} 1/2-1/2

[Event "94th FRA-ch Open B 2019"]
[Site "Chartres"]
[Date "2019.08.24"]
[Round "8.2"]
[White "Chabaud, Mathis"]
[Black "Delin, Valere"]
[Result "0-1"]
[ECO "B53"]
[WhiteElo "1915"]
[BlackElo "1866"]
[Annotator "NA"]
[PlyCount "64"]
[EventDate "2019.08.17"]
[EventType "swiss"]
[EventCountry "FRA"]
[SourceTitle "playchess.com"]
[Source "ChessBase"]
[SourceQuality "1"]
[TimeControl "40/5400+30:1800+30"]

1. e4 {[%emt 0:00:00]} c5 {[%emt 0:00:00]} 2. Nf3 {[%emt 0:00:00]} d6 {[%emt 0:00:00]} 3. d4 {[%emt 0:00:05]} cxd4 {[%emt 0:00:00]} 4. Qxd4 {[%emt 0:00:10]} Nc6 {[%emt 0:00:00]} 5. Bb5 {[%emt 0:00:14]} Bd7 {[%emt 0:00:04]} 6. Bxc6 {[%emt 0:00:11]} Bxc6 {[%emt 0:00:05]} 7. Nc3 {[%emt 0:00:29]} Nf6 {[%emt 0:00:15]} 8. Bg5 {[%emt 0:00:32]} e6 {[%emt 0:00:23]} 9. Qd3 {[%emt 0:00:21]} Be7 {[%emt 0:00:56]} 10. Nd4 {[%emt 0:00:35]} Rc8 {[%emt 0:02:48]} 11. O-O-O {[%emt 0:02:27]} O-O {[%emt 0:01:19]} 12. f4 {[%emt 0:00:42]} a6 {[%emt 0:05:02]} 13. f5 {[%emt 0:05:11]} Ng4 {[%emt 0:04:23]} 14. Bxe7 {[%emt 0:04:30]} Qxe7 {[%emt 0:00:06]} 15. Qe2 {[%emt 0:04:22]} Ne5 {[%emt 0:01:21]} 16. Kb1 {[%emt 0:03:09]} b5 {[%emt 0:01:04]} 17. Rdf1 {[%emt 0:11:38]} b4 {[%emt 0:07:01]} 18. Nd1 {[%emt 0:01:17]} Qa7 {[%emt 0:02:07]} 19. Nxc6 {[%emt 0:05:14]} Nxc6 {[%emt 0:00:31]} 20. f6 {[%emt 0:07:29]} Ne5 {[%emt 0:13:15]} 21. Ne3 {[%emt 0:05:15]} Qd4 {[%emt 0:03:50]} 22. Rf4 {[%emt 0:10:33]} Ng6 {[%emt 0:24:48]} 23. fxg7 {[%emt 0:01:50]} Nxf4 {[%emt 0:01:33]} 24. gxf8=Q+ {[%emt 0:01:17]} Rxf8 {[%emt 0:00:08]} 25. Qf3 {[%emt 0:02:58]} Ng6 {[%emt 0:03:24]} 26. Rd1 {[%emt 0:02:21]} Qc5 {[%emt 0:02:21]} 27. Qg3 {[%emt 0:02:20]} Rd8 {[%emt 0:06:56]} 28. Ng4 {[%emt 0:00:50]} Qg5 {[%emt 0:00:39]} 29. e5 {[%emt 0:01:46]} dxe5 {[%emt 0:02:57]} 30. Nh6+ {[%emt 0:00:37]} Kg7 {[%emt 0:00:39]} 31. Rxd8 {[%emt 0:21:28]} Qxd8 {[%emt 0:00:03]} 32. Qf3 {[%emt 0:00:39]} Kxh6 {[%emt 0:00:17]} 0-1

[Event "94th FRA-ch Open B 2019"]
[Site "Chartres"]
[Date "2019.08.24"]
[Round "8.3"]
[White "Grange, Julien"]
[Black "Ragneau, Freddy"]
[Result "1-0"]
[ECO "D93"]
[WhiteElo "1894"]
[BlackElo "1814"]
[Annotator "NA"]
[PlyCount "199"]
[EventDate "2019.08.17"]
[EventType "swiss"]
[EventCountry "FRA"]
[SourceTitle "playchess.com"]
[Source "ChessBase"]
[SourceQuality "1"]
[TimeControl "40/5400+30:1800+30"]

1. d4 {[%emt 0:00:00]} Nf6 {[%emt 0:00:00]} 2. Nf3 {[%emt 0:00:00]} g6 {[%emt 0:00:50]} 3. c4 {[%emt 0:00:22]} Bg7 {[%emt 0:00:45]} 4. Nc3 {[%emt 0:01:54]} d5 {[%emt 0:00:54]} 5. Bf4 {[%emt 0:00:18]} O-O {[%emt 0:04:17]} 6. e3 {[%emt 0:01:47]} c6 {[%emt 0:05:35]} 7. Be2 {[%emt 0:01:26]} Qb6 {[%emt 0:07:41]} 8. a3 {[%emt 0:01:26]} Bf5 {[%emt 0:06:58]} 9. b4 {[%emt 0:08:15]} dxc4 {[%emt 0:05:50]} 10. Bxc4 {[%emt 0:00:38]} a5 {[%emt 0:06:43]} 11. b5 {[%emt 0:04:03]} cxb5 {[%emt 0:06:30]} 12. Qb3 {[%emt 0:07:45]} e6 {[%emt 0:14:23]} 13. Na4 {[%emt 0:06:40]} Qc6 {[%emt 0:08:13]} 14. Bxb5 {[%emt 0:00:23]} Qc2 {[%emt 0:02:48]} 15. Qxc2 {[%emt 0:00:05]} Bxc2 {[%emt 0:00:06]} 16. Nb6 {[%emt 0:00:03]} Ra7 {[%emt 0:03:57]} 17. Bd6 {[%emt 0:00:20]} Rd8 {[%emt 0:00:57]} 18. Be7 {[%emt 0:00:06]} Rd5 {[%emt 0:01:37]} 19. Nxd5 {[%emt 0:00:31]} Nxd5 {[%emt 0:00:10]} 20. Bd6 {[%emt 0:01:56]} Nc6 {[%emt 0:12:04]} 21. Rc1 {[%emt 0:04:27]} Be4 {[%emt 0:05:17]} 22. Ng5 {[%emt 0:00:08]} Bxg2 {[%emt 0:00:45]} 23. Rg1 {[%emt 0:00:06]} h6 {[%emt 0:00:17]} 24. Nxe6 {[%emt 0:00:05]} Bh3 {[%emt 0:02:32]} 25. Nc5 {[%emt 0:01:04]} Bc8 {[%emt 0:01:35]} 26. Nd3 {[%emt 0:00:59]} Nde7 {[%emt 0:01:00]} 27. Bxe7 {[%emt 0:01:59]} Nxe7 {[%emt 0:00:09]} 28. Rc7 {[%emt 0:00:03]} Bf8 {[%emt 0:00:13]} 29. d5 {[%emt 0:00:05]} Bf5 {[%emt 0:00:24]} 30. Nf4 {[%emt 0:00:52]} Nc8 {[%emt 0:01:34]} 31. e4 {[%emt 0:00:17]} Bd6 {[%emt 0:00:04]} 32. Rc2 {[%emt 0:00:40]} Bxf4 {[%emt 0:00:33]} 33. exf5 {[%emt 0:00:13]} Nd6 {[%emt 0:00:12]} 34. Bd3 {[%emt 0:00:42]} g5 {[%emt 0:00:11]} 35. h4 {[%emt 0:01:17]} Kg7 {[%emt 0:00:12]} 36. hxg5 {[%emt 0:00:27]} hxg5 {[%emt 0:00:12]} 37. Rh1 {[%emt 0:00:16]} b5 {[%emt 0:00:26]} 38. Ke2 {[%emt 0:02:21]} Kf6 {[%emt 0:01:17]} 39. Rd1 {[%emt 0:02:14]} Ke5 {[%emt 0:00:51]} 40. Kf3 {[%emt 0:00:49]} b4 {[%emt 0:00:40]} 41. axb4 {[%emt 0:30:18]} axb4 {[%emt 0:30:25]} 42. Kg4 {[%emt 0:02:28]} Ra4 {[%emt 0:00:00]} 43. Bc4 {[%emt 0:00:00]} Ra3 {[%emt 0:00:00]} 44. Re2+ {[%emt 0:00:00]} Kf6 {[%emt 0:00:00]} 45. Bd3 {[%emt 0:00:00]} b3 {[%emt 0:00:00]} 46. Rh1 {[%emt 0:00:00]} Kg7 {[%emt 0:00:00]} 47. Rh3 {[%emt 0:00:00]} Ra2 {[%emt 0:00:00]} 48. Rh1 {[%emt 0:01:53]} Rxe2 {[%emt 0:00:00]} 49. Bxe2 {[%emt 0:00:07]} b2 {[%emt 0:00:00]} 50. Bd3 {[%emt 0:00:22]} Bc1 {[%emt 0:00:00]} 51. Rh3 {[%emt 0:01:14]} Nc4 {[%emt 0:00:00]} 52. Bb1 {[%emt 0:00:58]} Ne5+ {[%emt 0:01:13]} 53. Kh5 {[%emt 0:04:53]} Nd7 {[%emt 0:00:23]} 54. Kg4 {[%emt 0:01:02]} Nf6+ {[%emt 0:00:51]} 55. Kg3 {[%emt 0:00:04]} Nxd5 {[%emt 0:00:36]} 56. Kh2 {[%emt 0:00:11]} Kf6 {[%emt 0:00:46]} 57. Rb3 {[%emt 0:00:51]} Ke5 {[%emt 0:00:33]} 58. Kg2 {[%emt 0:04:19]} f6 {[%emt 0:01:19]} 59. Kf3 {[%emt 0:00:32]} Kd6 {[%emt 0:00:31]} 60. Ke4 {[%emt 0:05:43]} Kc5 {[%emt 0:00:16]} 61. Bd3 {[%emt 0:00:26]} Nb4 {[%emt 0:01:00]} 62. Rc3+ {[%emt 0:00:27]} Kd6 {[%emt 0:00:40]} 63. Bb1 {[%emt 0:00:17]} Nc6 {[%emt 0:01:07]} 64. Rc4 {[%emt 0:01:18]} Na5 {[%emt 0:00:26]} 65. Rd4+ {[%emt 0:03:28]} Kc5 {[%emt 0:00:34]} 66. Rd5+ {[%emt 0:00:08]} Kb4 {[%emt 0:00:12]} 67. Rd4+ {[%emt 0:00:31]} Kc5 {[%emt 0:00:28]} 68. Rd5+ {[%emt 0:00:53]} Kb4 {[%emt 0:00:11]} 69. Kd3 {[%emt 0:04:46]} Nb7 {[%emt 0:01:25]} 70. f3 {[%emt 0:00:30]} Nc5+ {[%emt 0:00:21]} 71. Kc2 {[%emt 0:02:49]} Kc4 {[%emt 0:01:36]} 72. Ba2+ {[%emt 0:00:25]} Kb5 {[%emt 0:00:23]} 73. Rd6 {[%emt 0:00:23]} g4 {[%emt 0:00:47]} 74. fxg4 {[%emt 0:01:32]} Bg5 {[%emt 0:00:50]} 75. Kxb2 {[%emt 0:00:30]} Ne4 {[%emt 0:00:15]} 76. Rd4 {[%emt 0:00:56]} Nf2 {[%emt 0:00:48]} 77. Bf7 {[%emt 0:00:33]} Kc5 {[%emt 0:00:18]} 78. Rc4+ {[%emt 0:01:49]} Kd6 {[%emt 0:00:16]} 79. Kc2 {[%emt 0:01:21]} Ke5 {[%emt 0:00:22]} 80. Bh5 {[%emt 0:00:15]} Be3 {[%emt 0:00:40]} 81. Rc6 {[%emt 0:00:47]} Bg5 {[%emt 0:00:13]} 82. Ra6 {[%emt 0:00:08]} Ke4 {[%emt 0:00:18]} 83. Rb6 {[%emt 0:01:38]} Nd3 {[%emt 0:01:09]} 84. Kc3 {[%emt 0:04:00]} Ne5 {[%emt 0:00:15]} 85. Rb4+ {[%emt 0:00:52]} Kd5 {[%emt 0:00:25]} 86. Rd4+ {[%emt 0:00:26]} Kc5 {[%emt 0:00:11]} 87. Rd8 {[%emt 0:00:15]} Bf4 {[%emt 0:00:30]} 88. Rg8 {[%emt 0:00:28]} Bh6 {[%emt 0:00:33]} 89. Re8 {[%emt 0:01:23]} Bf4 {[%emt 0:00:08]} 90. Re6 {[%emt 0:00:34]} Bg5 {[%emt 0:00:19]} 91. Kb3 {[%emt 0:04:17]} Nc6 {[%emt 0:00:43]} 92. Ka4 {[%emt 0:00:33]} Kb6 {[%emt 0:00:40]} 93. Be8 {[%emt 0:00:09]} Kc7 {[%emt 0:00:43]} 94. Bxc6 {[%emt 0:00:14]} Bh4 {[%emt 0:00:16]} 95. Kb5 {[%emt 0:00:15]} Bg5 {[%emt 0:00:14]} 96. Kc5 {[%emt 0:00:14]} Bh4 {[%emt 0:00:34]} 97. Re7+ {[%emt 0:00:08]} Kd8 {[%emt 0:00:20]} 98. Kd6 {[%emt 0:00:28]} Bg3+ {[%emt 0:00:28]} 99. Ke6 {[%emt 0:00:06]} Bh4 {[%emt 0:01:19]} 100. Rf7 {[%emt 0:00:40]} 1-0

[Event "94th FRA-ch Open B 2019"]
[Site "Chartres"]
[Date "2019.08.24"]
[Round "8.4"]
[White "Arene, Olivier"]
[Black "Bosc, Gabriel"]
[Result "0-1"]
[ECO "B21"]
[WhiteElo "1872"]
[BlackElo "1893"]
[Annotator "NA"]
[PlyCount "45"]
[EventDate "2019.08.17"]
[EventType "swiss"]
[EventCountry "FRA"]
[SourceTitle "playchess.com"]
[Source "ChessBase"]
[SourceQuality "1"]
[TimeControl "40/5400+30:1800+30"]

1. e4 {[%emt 0:01:42]} c5 {[%emt 0:00:00]} 2. d4 {[%emt 0:00:07]} cxd4 {[%emt 0:00:00]} 3. c3 {[%emt 0:00:04]} dxc3 {[%emt 0:00:00]} 4. Nxc3 {[%emt 0:00:08]} Nc6 {[%emt 0:00:06]} 5. Nf3 {[%emt 0:00:11]} g6 {[%emt 0:01:23]} 6. Bc4 {[%emt 0:00:25]} Bg7 {[%emt 0:01:38]} 7. e5 {[%emt 0:00:05]} Nxe5 {[%emt 0:11:54]} 8. Nxe5 {[%emt 0:00:34]} Bxe5 {[%emt 0:00:04]} 9. Bxf7+ {[%emt 0:00:16]} Kxf7 {[%emt 0:00:04]} 10. Qd5+ {[%emt 0:00:06]} Kg7 {[%emt 0:00:31]} 11. Qxe5+ {[%emt 0:00:46]} Nf6 {[%emt 0:00:10]} 12. O-O {[%emt 0:13:23]} d6 {[%emt 0:02:12]} 13. Qd4 {[%emt 0:04:52]} b6 {[%emt 0:08:00]} 14. Bg5 {[%emt 0:07:16]} Rf8 {[%emt 0:02:24]} 15. Nd5 {[%emt 0:05:59]} Bb7 {[%emt 0:06:47]} 16. Bxf6+ {[%emt 0:15:48]} exf6 {[%emt 0:00:15]} 17. Rfe1 {[%emt 0:00:05]} Rf7 {[%emt 0:00:43]} 18. Re6 {[%emt 0:02:45]} Rc8 {[%emt 0:00:54]} 19. Nf4 {[%emt 0:02:18]} d5 {[%emt 0:02:21]} 20. Rae1 {[%emt 0:02:06]} Rc4 {[%emt 0:11:41]} 21. Qd2 {[%emt 0:01:08]} Qb8 {[%emt 0:05:08]} 22. Nxd5 {[%emt 0:08:18]} Qd8 {[%emt 0:02:02]} 23. Nf4 {[%emt 0:33:08]} 0-1

[Event "94th FRA-ch Open B 2019"]
[Site "Chartres"]
[Date "2019.08.24"]
[Round "8.5"]
[White "Le Menelec, Erwan-Son"]
[Black "Dubuisson, Mathias"]
[Result "1-0"]
[ECO "B01"]
[WhiteElo "1986"]
[BlackElo "1876"]
[Annotator "NA"]
[PlyCount "71"]
[EventDate "2019.08.17"]
[EventType "swiss"]
[EventCountry "FRA"]
[SourceTitle "playchess.com"]
[Source "ChessBase"]
[SourceQuality "1"]
[TimeControl "40/5400+30:1800+30"]

1. e4 {[%emt 0:00:00]} d5 {[%emt 0:00:00]} 2. exd5 {[%emt 0:00:00]} Nf6 {[%emt 0:00:06]} 3. Bb5+ {[%emt 0:00:00]} Bd7 {[%emt 0:00:17]} 4. Bc4 {[%emt 0:00:00]} Bf5 {[%emt 0:00:45]} 5. Nc3 {[%emt 0:00:00]} Nbd7 {[%emt 0:00:49]} 6. d4 {[%emt 0:11:33]} Nb6 {[%emt 0:04:18]} 7. Bb5+ {[%emt 0:02:04]} Bd7 {[%emt 0:00:35]} 8. Bd3 {[%emt 0:00:40]} Bg4 {[%emt 0:00:42]} 9. f3 {[%emt 0:00:57]} Bd7 {[%emt 0:10:28]} 10. Be4 {[%emt 0:13:42]} Bc8 {[%emt 0:00:24]} 11. Bf4 {[%emt 0:20:55]} Nbxd5 {[%emt 0:08:22]} 12. Nxd5 {[%emt 0:01:13]} Nxd5 {[%emt 0:00:02]} 13. Bxd5 {[%emt 0:00:12]} Qxd5 {[%emt 0:00:02]} 14. Bxc7 {[%emt 0:01:16]} Bf5 {[%emt 0:00:12]} 15. c3 {[%emt 0:01:12]} Qc6 {[%emt 0:07:39]} 16. Bf4 {[%emt 0:03:18]} Rd8 {[%emt 0:01:06]} 17. Ne2 {[%emt 0:01:12]} g6 {[%emt 0:05:45]} 18. O-O {[%emt 0:01:40]} Qb5 {[%emt 0:01:46]} 19. Ng3 {[%emt 0:06:13]} Bd3 {[%emt 0:07:10]} 20. Re1 {[%emt 0:00:15]} g5 {[%emt 0:00:59]} 21. Bxg5 {[%emt 0:03:39]} Rg8 {[%emt 0:01:23]} 22. Re5 {[%emt 0:06:23]} Qxb2 {[%emt 0:05:36]} 23. Qe1 {[%emt 0:04:51]} Rd7 {[%emt 0:04:37]} 24. Rc5 {[%emt 0:06:20]} Kd8 {[%emt 0:02:18]} 25. Rd1 {[%emt 0:00:54]} b6 {[%emt 0:05:56]} 26. Re5 {[%emt 0:09:03]} Bc4 {[%emt 0:12:32]} 27. Qe4 {[%emt 0:01:42]} Qa3 {[%emt 0:05:42]} 28. Qa8+ {[%emt 0:00:22]} Kc7 {[%emt 0:00:13]} 29. Bf4 {[%emt 0:00:13]} Rd6 {[%emt 0:02:12]} 30. Nf5 {[%emt 0:02:39]} Qxa2 {[%emt 0:02:41]} 31. Rxe7+ {[%emt 0:01:02]} Bxe7 {[%emt 0:00:34]} 32. Qxg8 {[%emt 0:00:27]} Qc2 {[%emt 0:02:51]} 33. Re1 {[%emt 0:01:05]} Qxf5 {[%emt 0:01:58]} 34. Rxe7+ {[%emt 0:00:04]} Kc6 {[%emt 0:00:09]} 35. Qe8+ {[%emt 0:00:25]} Kd5 {[%emt 0:02:04]} 36. Re5+ {[%emt 0:00:13]} 1-0

[Event "94th FRA-ch Open B 2019"]
[Site "Chartres"]
[Date "2019.08.24"]
[Round "8.6"]
[White "Lefevre, Margaux"]
[Black "Navrotescu, Vlad-Andrei"]
[Result "0-1"]
[ECO "B53"]
[WhiteElo "1868"]
[BlackElo "1943"]
[Annotator "NA"]
[PlyCount "66"]
[EventDate "2019.08.17"]
[EventType "swiss"]
[EventCountry "FRA"]
[SourceTitle "playchess.com"]
[Source "ChessBase"]
[SourceQuality "1"]
[TimeControl "40/5400+30:1800+30"]

1. e4 {[%emt 0:00:00]} c5 {[%emt 0:00:00]} 2. Nf3 {[%emt 0:00:00]} d6 {[%emt 0:00:00]} 3. d4 {[%emt 0:00:34]} cxd4 {[%emt 0:00:00]} 4. Qxd4 {[%emt 0:01:11]} e5 {[%emt 0:06:59]} 5. Qe3 {[%emt 0:27:11]} Nf6 {[%emt 0:02:14]} 6. Bc4 {[%emt 0:10:22]} Be7 {[%emt 0:00:50]} 7. O-O {[%emt 0:01:00]} O-O {[%emt 0:00:10]} 8. Nc3 {[%emt 0:14:16]} a6 {[%emt 0:02:24]} 9. a4 {[%emt 0:04:42]} Qc7 {[%emt 0:03:18]} 10. Bb3 {[%emt 0:14:01]} Nbd7 {[%emt 0:00:55]} 11. a5 {[%emt 0:01:22]} Nc5 {[%emt 0:00:39]} 12. Nd5 {[%emt 0:01:37]} Nxd5 {[%emt 0:00:18]} 13. Bxd5 {[%emt 0:00:24]} Be6 {[%emt 0:00:48]} 14. c4 {[%emt 0:05:53]} Bxd5 {[%emt 0:03:36]} 15. exd5 {[%emt 0:00:39]} f5 {[%emt 0:00:17]} 16. b4 {[%emt 0:01:32]} Ne4 {[%emt 0:00:08]} 17. Qb3 {[%emt 0:01:42]} Rac8 {[%emt 0:01:42]} 18. c5 {[%emt 0:09:36]} dxc5 {[%emt 0:00:04]} 19. bxc5 {[%emt 0:00:48]} Nxc5 {[%emt 0:01:14]} 20. Qc4 {[%emt 0:00:41]} Bf6 {[%emt 0:00:44]} 21. d6+ {[%emt 0:01:55]} Qf7 {[%emt 0:00:03]} 22. Qxf7+ {[%emt 0:00:19]} Kxf7 {[%emt 0:00:14]} 23. Rb1 {[%emt 0:00:24]} Rfd8 {[%emt 0:01:50]} 24. Rd1 {[%emt 0:00:26]} e4 {[%emt 0:00:04]} 25. Ng5+ {[%emt 0:00:29]} Kg6 {[%emt 0:00:03]} 26. h4 {[%emt 0:00:47]} Nd3 {[%emt 0:01:09]} 27. Ba3 {[%emt 0:00:30]} Rc3 {[%emt 0:08:15]} 28. Bb2 {[%emt 0:00:44]} Nxb2 {[%emt 0:00:13]} 29. Rxb2 {[%emt 0:00:07]} Rd3 {[%emt 0:00:05]} 30. Rxd3 {[%emt 0:00:44]} exd3 {[%emt 0:00:04]} 31. Rd2 {[%emt 0:00:40]} Rxd6 {[%emt 0:00:05]} 32. Nf3 {[%emt 0:00:23]} Bc3 {[%emt 0:00:54]} 33. Rd1 {[%emt 0:00:14]} Rd5 {[%emt 0:00:55]} 0-1